bitfinex-derivatives/quotes_SOLF0:USTF0_20250829
["timestamp","ask_amount","ask_price","bid_price","bid_amount"]
[1756452197996,0.03042469,209.02,209.0,7.75]
[1756452198397,0.03042469,209.02,208.99,4.3057]
[1756452198601,0.03042469,209.02,209.0,7.75]
[1756452198800,0.03042469,209.02,208.99,4.3057]
[1756452199003,0.03042469,209.02,209.0,7.75]
[1756452199705,0.03042469,209.02,209.01,12.0553]
[1756452201603,0.03042469,209.02,209.01,160.7353]
[1756452201901,0.03042469,209.02,209.01,12.0553]
[1756452202115,0.03042469,209.02,209.01,160.6953]
[1756452202710,0.03042469,209.02,209.01,12.0553]
[1756452202917,0.03042469,209.02,209.01,160.6553]
[1756452204920,0.03042469,209.02,209.01,160.5953]
[1756452206715,0.03042469,209.02,209.01,156.25]
[1756452208518,0.03042469,209.02,209.01,160.5553]
[1756452208711,0.03042469,209.02,209.01,160.4953]
[1756452210622,0.03042469,209.02,208.99,4.3057]
[1756452210823,0.03042469,209.02,209.0,148.38]
[1756452211725,0.03042469,209.02,209.01,148.34]
[1756452212919,0.03042469,209.02,209.01,148.32]
[1756452213121,0.03042469,209.02,209.0,148.3]
[1756452213312,0.12042469,209.02,208.97,4.3059]
[1756452213515,0.03042469,209.02,208.99,4.3057]
[1756452214423,0.03042469,209.02,208.98,148.26]
[1756452214619,0.09,209.01,208.92,7.75]
[1756452214821,0.09,209.01,208.93,148.26]
[1756452215715,0.03042469,209.02,208.93,148.26]
[1756452215922,0.03042469,209.02,208.94,7.75]
[1756452216521,0.03042469,209.02,208.94,5.25250699]
[1756452216820,0.03042469,209.02,208.93,148.26]
[1756452216821,0.03042469,209.02,208.96,5.25250699]
[1756452217128,0.03042469,209.02,208.97,148.2]
[1756452217323,0.03042469,209.02,208.98,148.18]
[1756452218326,0.03042469,209.02,208.99,7.22]
[1756452218525,0.03042469,209.02,208.98,148.18]
[1756452218727,0.03042469,209.02,208.99,7.22]
[1756452219328,0.03042469,209.02,209.01,7.22]
[1756452220314,0.03042469,209.02,209.01,155.32]
[1756452220618,0.06,209.17,209.02,7.22]
[1756452221021,0.06,209.17,209.05,7.22]
[1756452222018,0.06,209.17,209.09,0.03171691]
[1756452222223,0.06,209.17,209.1,148.06]
[1756452223224,0.09,209.23,209.13,4.3028]
[1756452223425,0.09,209.23,209.1,147.98]
[1756452223820,0.09,209.23,209.07,7.22]
[1756452224028,4.3016,209.19,209.14,0.03255533]
[1756452224220,0.09,209.18,209.14,0.03255533]
[1756452224627,4.3016,209.19,209.14,0.03255533]
[1756452224827,0.09,209.18,209.14,0.03255533]
[1756452225027,4.3016,209.19,209.14,0.03255533]
[1756452225727,0.09,209.18,209.14,0.03255533]
[1756452225927,4.3016,209.19,209.14,0.03255533]
[1756452226622,0.09,209.18,209.14,0.03255533]
[1756452226820,4.3016,209.19,209.14,0.03255533]
[1756452227024,0.09,209.18,209.14,0.03255533]
[1756452227928,4.3016,209.19,209.14,0.03255533]
[1756452228126,0.09,209.18,209.14,0.03255533]
[1756452228336,66.9147,209.19,209.14,0.03255533]
[1756452228527,0.09,209.2,209.14,0.03255533]
[1756452229123,0.09,209.16,209.14,0.03255533]
[1756452231026,4.302,209.17,209.14,0.03255533]
[1756452231226,0.09,209.16,209.14,0.03255533]
[1756452233031,0.09,209.16,209.14,7.03255533]
[1756452234931,4.302,209.17,209.14,7.03255533]
[1756452235131,0.09,209.16,209.14,7.03255533]
[1756452235333,0.09,209.15,209.14,7.03255533]
[1756452235642,0.57,209.15,209.07,7.22]
[1756452235940,7.62864318,209.13,209.07,7.22]
[1756452236141,4.3932,209.12,209.07,7.22]
[1756452236928,4.33431257,209.12,209.03,7.22]
[1756452237334,4.3034,209.11,209.03,7.22]
[1756452237642,0.09,209.08,208.99,7.22]
[1756452238141,0.09,209.08,208.94,7.22]
[1756452238341,0.09,209.08,208.96,7.22]
[1756452238530,0.03549307,209.06,208.96,7.22]
[1756452239136,4.3045,209.05,208.96,7.22]
[1756452239940,0.03549307,209.06,208.96,7.22]
[1756452239941,4.3049,209.03,208.96,7.22]
[1756452240144,66.959,209.05,208.96,7.22]
[1756452240744,0.03513303,209.03,208.96,7.22]
[1756452241535,0.09,209.01,208.96,7.22]
[1756452241737,0.03513303,209.03,208.96,7.22]
[1756452244635,75.5331,209.15,208.96,7.22]
[1756452244636,66.9279,209.15,208.96,7.22]
[1756452244840,7.62864318,209.12,208.96,7.22]
[1756452245139,0.12,209.14,208.99,7.22]
[1756452245335,74.56324318,209.13,208.99,7.22]
[1756452245740,4.3032,209.12,208.99,7.22]
[1756452246141,4.3032,209.12,209.05,7.22]
[1756452247340,66.9383,209.12,209.04,0.03621345]
[1756452247546,74.56694318,209.12,209.04,0.03621345]
[1756452247944,66.946,209.09,209.04,0.03621345]
[1756452248144,67.0594,209.08,209.04,0.03621345]
[1756452249250,4.4142,209.06,209.04,0.03621345]
[1756452250043,66.9494,209.08,208.94,154.68864318]
[1756452250044,66.966,209.03,208.94,7.16]
[1756452250244,66.9727,209.01,208.94,7.16]
[1756452250644,66.9847,208.97,208.89,328.56]
[1756452250950,7.62864318,208.97,208.89,7.16]
[1756452251551,67.02702027,208.95,208.89,7.16]
[1756452252148,4.3069,208.93,208.82,113.3]
[1756452252351,4.3069,208.93,208.83,7.16]
[1756452252552,4.3069,208.93,208.85,7.16]
[1756452252847,67.0296,208.83,208.77,7.16]
[1756452253046,67.0296,208.83,208.69,7.16]
[1756452253248,4.3097,208.8,208.69,7.16]
[1756452253654,0.03371395,208.78,208.69,7.16]
[1756452256448,4.3102,208.77,208.68,0.8333034]
[1756452256652,0.03371395,208.78,208.67,7.16]
[1756452257254,0.1,208.81,208.67,7.16]
[1756452257452,0.03243898,208.75,208.67,7.16]
[1756452258652,0.03243898,208.75,208.65,0.83376259]
[1756452258653,0.03243898,208.75,208.65,7.16]
[1756452259552,0.1,208.74,208.66,62.0]
[1756452259751,0.1,208.74,208.65,7.16]
[1756452259948,67.1583,208.74,208.57,11.77643142]
[1756452260149,67.1583,208.74,208.58,7.16]
[1756452260349,0.1,208.73,208.58,7.16]
[1756452260759,67.11023117,208.68,208.58,7.16]
[1756452260956,67.11023117,208.68,208.52,7.16]
[1756452260957,67.0863,208.66,208.52,7.16]
[1756452261152,0.1,208.65,208.52,7.16]
[1756452261352,4.4129,208.65,208.52,7.16]
[1756452261857,0.03631434,208.61,208.52,7.16]
[1756452262655,0.1,208.59,208.45,62.0]
[1756452262861,0.1,208.58,208.42,62.66]
[1756452263059,0.1,208.58,208.45,0.83449235]
[1756452263465,0.1,208.58,208.43,65.72]
[1756452263466,11.77643142,208.62,208.46,7.16]
[1756452263762,0.1,208.63,208.46,7.16]
[1756452265156,67.1941,208.63,208.52,7.19290909]
[1756452265363,67.0968,208.62,208.52,7.19290909]
[1756452265657,4.3141,208.59,208.52,0.03290909]
[1756452265867,71.5509,208.59,208.52,0.03290909]
[1756452266063,4.4441,208.59,208.52,0.03290909]
[1756452266556,11.77643142,208.63,208.52,0.03290909]
[1756452266557,16.08973142,208.63,208.52,0.03290909]
[1756452266762,0.13,208.64,208.52,7.19290909]
[1756452267958,67.2207,208.64,208.52,7.19290909]
[1756452268754,4.3135,208.62,208.52,7.19290909]
[1756452268954,4.3135,208.62,208.52,69.19290909]
[1756452269763,4.3135,208.62,208.52,7.19290909]
[1756452270161,11.90643142,208.64,208.52,7.19290909]
[1756452270366,78.99763142,208.64,208.52,7.19290909]
[1756452270567,4.3137,208.6,208.52,7.19290909]
[1756452270763,67.2334,208.6,208.52,0.03290909]
[1756452270966,67.1106,208.58,208.52,0.03290909]
[1756452271166,0.13,208.56,208.52,0.03290909]
[1756452271462,4.3145,208.57,208.52,0.03290909]
[1756452271769,78.87983142,208.6,208.52,0.03290909]
[1756452271770,4.3148,208.55,208.52,0.03290909]
[1756452272266,4.3143,208.58,208.52,0.03290909]
[1756452273465,4.3136,208.61,208.52,0.03290909]
[1756452273672,0.13,208.64,208.52,0.03290909]
[1756452273962,11.77643142,208.67,208.53,7.16]
[1756452274163,67.0717,208.7,208.53,7.16]
[1756452274365,0.13,208.71,208.53,7.16]
[1756452274565,67.0781,208.68,208.56,7.16]
[1756452274870,0.13,208.71,208.52,146.56]
[1756452274871,0.13,208.71,208.59,0.03122861]
[1756452275073,4.312,208.69,208.59,0.03122861]
[1756452275263,0.13,208.71,208.59,0.03122861]
[1756452275662,0.13,208.71,208.6,7.16]
[1756452275959,11.77643142,208.76,208.6,7.16]
[1756452276166,11.77643142,208.8,208.61,67.099]
[1756452276366,11.77643142,208.8,208.63,7.16]
[1756452276563,11.77643142,208.8,208.65,7.13]
[1756452276862,4.3101,208.78,208.65,7.13]
[1756452277261,67.2028,208.79,208.7,0.03348783]
[1756452277462,0.16,208.79,208.7,0.03348783]
[1756452277862,67.0457,208.78,208.7,0.03348783]
[1756452278667,4.3105,208.76,208.7,0.03348783]
[1756452279067,0.16,208.73,208.7,0.03348783]
[1756452279259,67.0583,208.74,208.7,0.03348783]
[1756452279461,0.16,208.71,208.6,7.13]
[1756452280667,4.3117,208.7,208.6,7.13]
[1756452280871,0.03166265,208.68,208.6,7.13]
[1756452282168,11.77643142,208.78,208.62,0.03329485]
[1756452282363,67.0365,208.81,208.63,7.13]
[1756452282667,78.86143142,208.66,208.46,7.13]
[1756452282867,67.1038,208.6,208.46,7.13]
[1756452283074,67.1197,208.55,208.46,7.13]
[1756452283664,4.3154,208.52,208.46,7.13]
[1756452283870,4.3154,208.52,208.48,0.03234076]
[1756452284365,4.3159,208.5,208.48,0.03234076]
[1756452284770,4.5159,208.5,208.48,0.03234076]
[1756452285470,4.3159,208.5,208.48,0.03234076]
[1756452285976,0.2,208.49,208.48,0.03234076]
[1756452287171,0.03650508,208.51,208.48,0.48]
[1756452287377,67.1108,208.58,208.49,7.13]
[1756452287674,67.1135,208.57,208.5,0.44340113]
[1756452287976,4.3148,208.55,208.5,0.44340113]
[1756452288478,4.3143,208.58,208.44,7.13]
[1756452288677,4.3143,208.58,208.51,0.44340113]
[1756452289176,16.09003142,208.61,208.51,0.44340113]
[1756452289377,16.09003142,208.61,208.5,0.03433478]
[1756452289575,4.3136,208.61,208.55,0.44340113]
[1756452289873,0.2,208.62,208.58,0.44340113]
[1756452290078,0.2,208.67,208.53,67.1254]
[1756452290271,0.2,208.67,208.63,0.44340113]
[1756452290576,4.3118,208.7,208.63,0.44340113]
[1756452290776,4.3118,208.7,208.65,0.44340113]
[1756452290976,4.3118,208.7,208.56,7.13]
[1756452290977,4.3118,208.7,208.64,0.03481179]
[1756452291180,4.5122,208.68,208.64,0.03481179]
[1756452291369,0.2,208.67,208.64,0.03481179]
[1756452292476,4.5125,208.66,208.64,0.03481179]
[1756452292777,0.2,208.65,208.64,0.03481179]
[1756452292976,0.2,208.65,208.64,1.179e-05]
[1756452293181,0.68,208.65,208.64,1.179e-05]
[1756452293488,0.68,208.65,208.5,7.13]
[1756452293489,67.1004,208.61,208.5,7.13]
[1756452293684,67.1004,208.61,208.54,0.44340113]
[1756452293882,67.1004,208.61,208.5,7.13]
[1756452293883,67.3102,208.58,208.5,7.13]
[1756452294083,67.3102,208.58,208.52,0.44340113]
[1756452294375,4.5144,208.57,208.5,7.13]
[1756452294580,4.54487227,208.57,208.5,7.13]
[1756452294780,0.03047227,208.57,208.54,0.44340113]
[1756452295384,0.03047227,208.57,208.56,0.44340113]
[1756452295589,0.03047227,208.57,208.46,322.08]
[1756452295590,0.03047227,208.57,208.55,0.44340113]
[1756452295990,0.03047227,208.57,208.56,0.44340113]
[1756452298488,0.03047227,208.57,208.49,7.13]
[1756452298689,0.03047227,208.57,208.52,0.44340113]
[1756452298990,4.3147,208.56,208.5,0.44340113]
[1756452299184,4.3147,208.56,208.49,7.13]
[1756452299590,4.3147,208.56,208.5,0.44340113]
[1756452301787,4.3147,208.56,208.54,0.44340113]
[1756452302196,0.03047227,208.57,208.54,0.44340113]
[1756452302390,0.03047227,208.57,208.55,0.44340113]
[1756452302586,0.03047227,208.57,208.56,7.57340113]
[1756452303189,4.3127,208.66,208.56,7.61]
[1756452303385,4.3127,208.66,208.61,0.41292886]
[1756452303788,0.2,208.7,208.56,7.13]
[1756452303993,0.2,208.7,208.64,0.41292886]
[1756452304191,4.3121,208.69,208.66,0.41292886]
[1756452304390,364.35210382,208.74,208.66,0.41292886]
[1756452304790,4.3117,208.7,208.66,0.41292886]
[1756452305192,4.3117,208.7,208.65,0.0329045]
[1756452305389,0.2,208.69,208.65,0.0329045]
[1756452305696,0.2,208.69,208.65,0.44583336]
[1756452305896,0.2,208.69,208.65,0.0329045]
[1756452307400,4.3117,208.7,208.65,0.44583336]
[1756452308298,4.3117,208.7,208.65,0.0329045]
[1756452308898,4.3117,208.7,208.67,0.41292886]
[1756452309095,4.3117,208.7,208.65,0.0329045]
[1756452309291,4.3117,208.7,208.65,7.9429045]
[1756452310195,4.3117,208.7,208.66,7.91]
[1756452310999,4.3117,208.7,208.69,0.41292886]
[1756452311807,67.0552,208.75,208.69,0.41292886]
[1756452312100,0.2,208.74,208.71,0.41292886]
[1756452312299,4.3112,208.72,208.63,7.91]
[1756452312501,4.3112,208.72,208.69,0.41292886]
[1756452312702,4.3112,208.72,208.7,0.03242792]
[1756452313304,4.5112,208.72,208.7,0.03242792]
[1756452313809,4.3112,208.72,208.7,0.44535678]
[1756452314004,4.3112,208.72,208.71,0.41292886]
[1756452314812,322.04,208.83,208.71,0.41292886]
[1756452315009,0.2,208.83,208.71,7.91]
[1756452315212,67.2157,208.88,208.68,7.91]
[1756452315510,67.0099,208.9,208.85,0.41292886]
[1756452315710,66.9986,208.93,208.8,7.91]
[1756452315905,4.307,208.93,208.89,0.41292886]
[1756452316215,0.2,209.0,208.92,0.41292886]
[1756452316413,4.3062,208.97,208.94,0.41292886]
[1756452316615,4.3062,208.97,208.88,7.91]
[1756452316811,4.3062,208.97,208.95,0.41292886]
[1756452317017,4.5056,209.0,208.95,0.41292886]
[1756452317315,4.5056,209.0,208.88,7.91]
[1756452317316,4.3056,209.0,208.97,0.41292886]
[1756452317518,4.3056,209.0,208.99,0.41292886]
[1756452318110,4.3062,208.97,208.95,0.03225664]
[1756452318310,4.3062,208.97,208.96,0.41292886]
[1756452318809,4.3062,208.97,208.95,0.03225664]
[1756452319010,67.0072,208.9,208.81,7.91]
[1756452319223,67.0125,208.89,208.81,7.91]
[1756452319421,67.0125,208.89,208.87,0.41292886]
[1756452319808,67.2072,208.9,208.78,329.89]
[1756452319809,4.3085,208.86,208.78,329.89]
[1756452320315,67.06,208.74,208.68,7.91]
[1756452320512,67.054,208.76,208.47,102.17890466]
[1756452320513,67.0749,208.69,208.63,7.91]
[1756452320718,67.0749,208.69,208.59,11.77643142]
[1756452321019,67.0713,208.7,208.59,11.77643142]
[1756452321215,0.03096351,208.68,208.59,11.77643142]
[1756452321416,0.03096351,208.68,208.58,7.91]
[1756452321617,0.03096351,208.68,208.59,62.0]
[1756452321821,0.03096351,208.68,208.6,7.91]
[1756452322810,67.10956351,208.68,208.6,7.91]
[1756452323015,67.0909,208.64,208.55,7.91]
[1756452323216,4.3137,208.61,208.55,7.91]
[1756452323823,0.03044613,208.6,208.51,145.3]
[1756452324116,0.03044613,208.6,208.52,7.91]
[1756452326024,0.03044613,208.6,208.53,62.0]
[1756452326219,4.314,208.59,208.52,7.91]
[1756452327019,0.03044613,208.6,208.47,102.17890466]
[1756452327020,71.428,208.57,208.47,102.17890466]
[1756452327726,0.03490997,208.54,208.47,102.17890466]
[1756452328124,4.34990997,208.54,208.46,7.91]
[1756452329020,0.03490997,208.54,208.46,7.91]
[1756452330226,67.15910997,208.54,208.4,7.91]
[1756452330725,67.1337,208.51,208.4,7.91]
[1756452330929,67.1392,208.49,208.34,99.32]
[1756452331124,67.17120409,208.49,208.36,0.83479262]
[1756452331325,4.3166,208.47,208.36,0.83479262]
[1756452331719,0.0304937,208.45,208.36,0.83479262]
[1756452333128,0.0304937,208.45,208.36,62.83479262]
[1756452335934,0.0304937,208.45,208.37,7.91]
[1756452338030,4.3171,208.44,208.3,7.23]
[1756452338431,4.3171,208.44,208.31,0.83504301]
[1756452338630,4.3176,208.42,208.31,0.83504301]
[1756452338834,0.03200639,208.4,208.3,7.23]
[1756452339126,0.03200639,208.4,208.26,145.06]
[1756452339332,0.03200639,208.4,208.29,7.23]
[1756452339333,4.35000639,208.4,208.29,7.23]
[1756452339532,0.03200639,208.4,208.29,7.23]
[1756452339728,0.03200639,208.4,208.26,145.89516325]
[1756452339930,0.03200639,208.4,208.33,7.23]
[1756452340338,0.03200639,208.4,208.34,145.04]
[1756452340537,0.03200639,208.4,208.33,7.23]
[1756452340837,0.03200639,208.4,208.31,7.23]
[1756452341040,0.03200639,208.4,208.31,69.23]
[1756452341637,0.03200639,208.4,208.33,7.23]
[1756452341838,0.03200639,208.4,208.28,7.23]
[1756452342139,4.35000639,208.4,208.28,7.23]
[1756452342535,4.3188,208.36,208.28,7.23]
[1756452342734,0.03200639,208.4,208.28,7.23]
[1756452343231,4.3186,208.37,208.25,152.25]
[1756452343739,0.03200639,208.4,208.25,152.25]
[1756452343938,4.35000639,208.4,208.29,7.23]
[1756452344431,0.03200639,208.4,208.29,7.23]
[1756452344641,0.03200639,208.4,208.3,62.0]
[1756452345030,0.03200639,208.4,208.29,7.23]
[1756452346440,4.3181,208.39,208.29,7.23]
[1756452348243,0.03200639,208.4,208.29,7.23]
[1756452348635,4.3184,208.38,208.29,7.23]
[1756452349337,67.1816,208.36,208.23,0.83526348]
[1756452349542,67.1848,208.35,208.32,1.48546123]
[1756452350345,4.3192,208.34,208.32,6.123e-05]
[1756452351545,67.2148,208.26,208.07,74.5042]
[1756452351844,67.1978,208.31,208.12,4.3236]
[1756452351845,67.2007,208.3,208.12,4.3236]
[1756452352044,67.2038,208.29,208.12,152.19]
[1756452352240,0.03621566,208.23,208.13,152.21]
[1756452352440,0.03621566,208.23,208.15,11.8235653]
[1756452352639,0.03621566,208.23,208.16,7.23]
[1756452352846,0.03621566,208.23,208.18,7.23]
[1756452353243,0.03621566,208.23,208.2,7.23]
[1756452353448,0.03621566,208.23,208.15,7.23]
[1756452353648,0.03621566,208.23,208.1,7.23]
[1756452353949,0.03621566,208.23,208.12,7.23]
[1756452354156,0.03621566,208.23,208.16,7.23]
[1756452354656,0.03621566,208.23,208.16,152.19]
[1756452354840,0.03621566,208.23,208.16,7.23]
[1756452355043,0.03621566,208.23,208.16,152.19]
[1756452355243,0.03621566,208.23,208.16,7.23]
[1756452355448,0.03621566,208.23,208.16,152.19]
[1756452355650,0.03621566,208.23,208.16,7.23]
[1756452356245,0.03621566,208.23,208.16,152.19]
[1756452356446,0.03621566,208.23,208.16,11.5528]
[1756452356642,0.03621566,208.23,208.17,144.96]
[1756452356846,0.03621566,208.23,208.18,144.96]
[1756452357445,0.03621566,208.23,208.19,7.23]
[1756452357644,0.03621566,208.23,208.18,144.96]
[1756452357845,0.03621566,208.23,208.19,7.23]
[1756452358854,0.03621566,208.23,208.13,62.0]
[1756452359053,0.03621566,208.23,208.14,144.94]
[1756452359247,0.03621566,208.23,208.13,62.0]
[1756452359555,0.03621566,208.23,208.14,144.94]
[1756452359852,4.35771566,208.23,208.12,7.23]
[1756452360345,4.322,208.21,208.12,7.23]
[1756452361151,0.03612548,208.19,208.12,7.23]
[1756452361542,0.03612548,208.19,208.05,19.51434585]
[1756452361543,0.03612548,208.19,208.08,144.92]
[1756452361749,0.03612548,208.19,208.09,7.23]
[1756452361949,67.2072,208.28,208.09,7.23]
[1756452362158,4.3211,208.25,208.09,7.23]
[1756452362454,0.03366485,208.16,208.1,206.92]
[1756452362648,0.03366485,208.16,208.1,62.0]
[1756452362844,67.28006485,208.16,208.02,7.23]
[1756452363051,67.2556,208.13,208.0,0.1]
[1756452363247,67.2556,208.13,208.0,7.33]
[1756452363452,4.3238,208.12,208.0,7.33]
[1756452363657,0.0367926,208.09,208.0,7.33]
[1756452364051,0.0367926,208.09,208.0,32.45]
[1756452364246,67.2109,208.27,208.02,18.70922673]
[1756452364452,67.2197,208.24,208.03,7.23]
[1756452364648,4.3217,208.22,208.04,18.67838011]
[1756452364857,0.05,208.26,208.05,7.23]
[1756452365446,4.3215,208.23,208.13,0.03286324]
[1756452365657,67.2166,208.25,208.13,0.03286324]
[1756452365858,67.2109,208.27,208.0,0.1]
[1756452366057,0.05,208.2,208.03,7.23]
[1756452366359,4.3219,208.21,208.17,0.03262196]
[1756452366549,67.2334,208.2,208.03,7.23]
[1756452366752,0.09,208.19,208.03,7.23]
[1756452366956,67.2404,208.18,208.03,7.23]
[1756452367360,0.03247462,208.14,208.03,7.23]
[1756452367956,4.3238,208.12,208.03,7.23]
[1756452368752,0.03576601,208.1,208.03,7.23]
[1756452369753,4.35996601,208.1,208.03,7.23]
[1756452371256,0.03576601,208.1,208.03,7.23]
[1756452371959,0.03576601,208.1,208.04,66.3254]
[1756452372257,0.03576601,208.1,208.04,211.2854]
[1756452372756,0.03576601,208.1,208.05,7.69]
[1756452372956,0.03576601,208.1,208.04,144.98]
[1756452373161,67.2131,208.26,208.07,7.69]
[1756452373352,67.2131,208.26,208.08,11.84164162]
[1756452373550,4.3217,208.22,208.09,12.0142]
[1756452374156,4.3217,208.22,208.1,7.69]
[1756452374353,4.3217,208.22,208.13,0.03426242]
[1756452375160,67.2291,208.21,208.13,0.03426242]
[1756452375362,0.07,208.2,208.13,0.03426242]
[1756452375561,0.07,208.2,208.1,7.69]
[1756452375757,67.2429,208.17,208.04,7.69]
[1756452375964,67.3097,208.18,208.14,0.03090778]
[1756452376159,67.2397,208.18,208.14,0.03090778]
[1756452376466,0.07,208.16,208.04,7.69]
[1756452376757,4.3931,208.15,208.14,0.03402692]
[1756452377064,67.3193,208.15,208.04,7.69]
[1756452377251,4.3238,208.12,208.04,7.69]
[1756452377457,0.07,208.15,208.04,7.69]
[1756452377654,0.07,208.15,208.06,0.03496806]
[1756452378462,4.3235,208.13,208.06,0.03496806]
[1756452379861,67.3189,208.15,208.06,0.03496806]
[1756452380254,4.3239,208.11,208.06,0.03496806]
[1756452381462,4.3943,208.09,208.06,0.03496806]
[1756452382175,4.3247,208.07,208.06,0.03496806]
[1756452383867,0.07,208.09,208.06,0.03496806]
[1756452384666,4.3243,208.1,208.06,0.03496806]
[1756452385265,4.3245,208.08,208.06,0.03496806]
[1756452387067,0.07,208.07,208.06,0.03496806]
[1756452387669,0.07,208.07,208.06,6.806e-05]
[1756452387870,67.2832,208.05,208.0,0.1]
[1756452388071,67.8263,208.07,208.0,0.0001]
[1756452388072,0.07,208.02,208.0,0.0001]
[1756452388666,4.396,208.01,208.0,0.0001]
[1756452389372,4.326,208.01,208.0,0.0001]
[1756452389678,0.03540514,208.03,208.0,0.0001]
[1756452390268,67.2614,208.11,208.0,0.0001]
[1756452390474,0.07,208.12,208.01,7.69]
[1756452391264,4.3245,208.08,208.01,7.69]
[1756452391468,67.2653,208.1,208.01,7.69]
[1756452391669,67.2653,208.1,208.04,0.03499668]
[1756452391872,4.3245,208.09,208.04,0.03499668]
[1756452392069,0.07,208.12,208.04,0.03499668]
[1756452392270,79.19844162,208.16,208.04,0.03499668]
[1756452392471,4.3239,208.12,208.04,0.03499668]
[1756452392670,67.2627,208.11,208.04,0.03499668]
[1756452392879,67.2651,208.1,208.04,0.03499668]
[1756452393078,4.3251,208.05,208.04,0.03499668]
[1756452393273,4.4351,208.05,208.04,9.668e-05]
[1756452394975,4.3251,208.05,208.04,9.668e-05]
[1756452396582,4.4651,208.05,208.04,9.668e-05]
[1756452396983,4.326,208.01,208.0,0.0001]
[1756452397189,4.466,208.01,208.0,0.0001]
[1756452397691,4.466,208.01,207.88,0.83665913]
[1756452397692,4.3271,207.96,207.88,0.83665913]
[1756452398296,0.03484192,207.94,207.88,0.83665913]
[1756452399894,4.36234192,207.94,207.88,0.83665913]
[1756452400100,4.36234192,207.94,207.87,7.17]
[1756452400397,11.84164162,207.93,207.87,7.17]
[1756452400799,4.3283,207.9,207.82,0.83693077]
[1756452401695,0.0317933,207.88,207.82,0.83693077]
[1756452403303,0.0317933,207.88,207.78,7.17]
[1756452403798,0.0317933,207.88,207.78,8.00719252]
[1756452404803,0.14,207.87,207.73,152.01]
[1756452405002,0.14,207.87,207.73,152.84727309]
[1756452405205,4.3298,207.83,207.73,8.00727309]
[1756452405500,4.3298,207.83,207.73,7.17]
[1756452405700,4.3301,207.81,207.73,7.17]
[1756452406096,0.03289132,207.82,207.73,7.17]
[1756452409898,0.03289132,207.82,207.74,7.17]
[1756452410200,0.03289132,207.82,207.74,67.3805]
[1756452410400,0.03289132,207.82,207.75,7.17]
[1756452412905,0.03289132,207.82,207.76,62.0]
[1756452414000,0.03289132,207.82,207.75,7.17]
[1756452418609,0.03289132,207.82,207.75,11.5014]
[1756452419405,0.03289132,207.82,207.75,7.17]
[1756452420717,0.03289132,207.82,207.76,7.17]
[1756452422115,0.14,207.91,207.78,7.17]
[1756452422510,67.2988,208.0,207.73,149.584]
[1756452422511,0.17,207.97,207.8,7.17]
[1756452422712,12.01164162,208.02,207.84,7.17]
[1756452423018,12.01164162,208.02,207.86,7.17]
[1756452423226,12.01164162,208.02,207.87,62.0]
[1756452423427,12.01164162,208.02,207.91,0.0340707]
[1756452423613,139.97880658,208.05,207.92,7.17]
[1756452423918,0.17,208.07,207.94,7.17]
[1756452424420,0.17,208.07,207.98,0.03452669]
[1756452425108,0.17,208.07,207.98,7.20452669]
[1756452426609,0.17,208.07,207.98,69.20452669]
[1756452426920,4.3242,208.1,207.99,144.62]
[1756452427510,0.15,208.11,207.99,144.62]
[1756452427710,0.15,208.11,208.02,0.03490845]
[1756452428213,0.15,208.2,208.02,144.61490845]
[1756452428417,0.15,208.2,208.06,7.47]
[1756452428621,67.2071,208.28,208.1,7.47]
[1756452428622,71.5275,208.28,208.1,7.47]
[1756452428821,0.15,208.27,208.11,144.56]